[Event "*** Titled Tuesday Blitz"]
[Site "Chess.com"]
[Date "2020.12.29"]
[Round "4"]
[White "MarcoCorvi"]
[Black "TengisChess"]
[Result "0-1"]
[WhiteElo "2183"]
[BlackElo "2414"]
[TimeControl "180+1"]
[EndTime "10:37:58 PST"]
[Termination "TengisChess won by resignation"]

1. d4 {[%clk 0:02:40.4]} 1... d5 {[%clk 0:02:58.2]} 2. Nf3 {[%clk 0:02:38]} 2...
Nf6 {[%clk 0:02:56.1]} 3. Bf4 {[%clk 0:02:38.5]} 3... c5 {[%clk 0:02:53.6]} 4.
e3 {[%clk 0:02:37.2]} 4... e6 {[%clk 0:02:53.2]} 5. c3 {[%clk 0:02:36.2]} 5...
Bd6 {[%clk 0:02:52.8]} 6. Bg3 {[%clk 0:02:32.6]} 6... Qc7 {[%clk 0:02:52.7]} 7.
Nbd2 {[%clk 0:02:30.6]} 7... Nbd7 {[%clk 0:02:52.7]} 8. Bd3 {[%clk 0:02:30]}
8... O-O {[%clk 0:02:53]} 9. O-O {[%clk 0:02:17.4]} 9... Bxg3 {[%clk 0:02:47.7]}
10. hxg3 {[%clk 0:02:16.6]} 10... e5 {[%clk 0:02:48.6]} 11. dxe5 {[%clk
0:02:15.6]} 11... Nxe5 {[%clk 0:02:49.5]} 12. Nxe5 {[%clk 0:02:15.8]} 12... Qxe5
{[%clk 0:02:50.2]} 13. Nf3 {[%clk 0:02:16.2]} 13... Qe7 {[%clk 0:02:50.4]} 14.
Qc2 {[%clk 0:02:15.7]} 14... b6 {[%clk 0:02:50.7]} 15. Rad1 {[%clk 0:02:12.9]}
15... Bb7 {[%clk 0:02:50.7]} 16. Bf5 {[%clk 0:02:00.5]} 16... Rad8 {[%clk
0:02:44.4]} 17. Qa4 {[%clk 0:01:47.7]} 17... g6 {[%clk 0:02:38.3]} 18. Bb1
{[%clk 0:01:38.9]} 18... a5 {[%clk 0:02:37.7]} 19. Qh4 {[%clk 0:01:37.7]} 19...
Kg7 {[%clk 0:02:33.1]} 20. g4 {[%clk 0:01:28.9]} 20... Rfe8 {[%clk 0:02:32.8]}
21. g5 {[%clk 0:01:28.6]} 21... Ng8 {[%clk 0:02:24]} 22. Nh2 {[%clk 0:01:25]}
22... h6 {[%clk 0:02:22.7]} 23. gxh6+ {[%clk 0:01:24.1]} 23... Nxh6 {[%clk
0:02:21.7]} 24. Qxe7 {[%clk 0:01:23.1]} 24... Rxe7 {[%clk 0:02:22.6]} 25. Nf3
{[%clk 0:01:21]} 25... Red7 {[%clk 0:02:20.9]} 26. Rd2 {[%clk 0:01:20.5]} 26...
d4 {[%clk 0:02:16.2]} 27. cxd4 {[%clk 0:01:18.4]} 27... Bxf3 {[%clk 0:02:16.1]}
28. gxf3 {[%clk 0:01:17.1]} 28... cxd4 {[%clk 0:02:16.5]} 29. Rfd1 {[%clk
0:01:12.7]} 29... f5 {[%clk 0:02:06.2]} 30. Rxd4 {[%clk 0:01:10.3]} 30... Rxd4
{[%clk 0:02:05.9]} 31. Rxd4 {[%clk 0:01:08.9]} 31... Rxd4 {[%clk 0:02:05.5]} 32.
exd4 {[%clk 0:01:08.9]} 32... f4 {[%clk 0:02:03.2]} 33. Kf1 {[%clk 0:01:07.2]}
33... Kf6 {[%clk 0:02:03.7]} 34. Ke2 {[%clk 0:01:06.8]} 34... g5 {[%clk
0:02:04]} 35. Kd3 {[%clk 0:01:04.8]} 35... Ke6 {[%clk 0:02:03.2]} 36. Ke4 {[%clk
0:01:02.4]} 36... Nf5 {[%clk 0:01:54.7]} 37. a3 {[%clk 0:00:59]} 37... Nd6+
{[%clk 0:01:52.9]} 38. Kd3 {[%clk 0:00:59.1]} 38... b5 {[%clk 0:01:50.1]} 39.
Ba2+ {[%clk 0:00:55]} 39... Kf5 {[%clk 0:01:49.3]} 40. b4 {[%clk 0:00:53.5]}
40... axb4 {[%clk 0:01:48]} 41. axb4 {[%clk 0:00:53.5]} 41... g4 {[%clk
0:01:48]} 42. Bd5 {[%clk 0:00:53.1]} 42... g3 {[%clk 0:01:47]} 43. fxg3 {[%clk
0:00:48.5]} 43... fxg3 {[%clk 0:01:47.9]} 44. Ke2 {[%clk 0:00:22.3]} 44... Kf4
{[%clk 0:01:47.2]} 45. Bc6 {[%clk 0:00:19.7]} 45... Nf5 {[%clk 0:01:42.4]} 46.
d5 {[%clk 0:00:18]} 46... Nd4+ {[%clk 0:01:42.6]} 47. Kf1 {[%clk 0:00:18.1]}
47... Kxf3 {[%clk 0:01:34.6]} 48. d6+ {[%clk 0:00:18.2]} 48... Nxc6 {[%clk
0:01:34.3]} 0-1

[Event "*** Titled Tuesday Blitz"]
[Site "Chess.com"]
[Date "2020.12.29"]
[Round "4"]
[White "Ave_Mariia"]
[Black "JonahWillow"]
[Result "0-1"]
[WhiteElo "2495"]
[BlackElo "2707"]
[TimeControl "180+1"]
[EndTime "10:38:01 PST"]
[Termination "JonahWillow won by resignation"]

1. d4 {[%clk 0:03:00.9]} 1... Nf6 {[%clk 0:02:59.9]} 2. c4 {[%clk 0:03:00.8]}
2... e6 {[%clk 0:03:00.8]} 3. g3 {[%clk 0:03:00.5]} 3... c5 {[%clk 0:03:00.6]}
4. d5 {[%clk 0:03:00.4]} 4... exd5 {[%clk 0:03:01.5]} 5. cxd5 {[%clk 0:03:01.2]}
5... d6 {[%clk 0:03:02.4]} 6. Nc3 {[%clk 0:03:00.6]} 6... g6 {[%clk 0:03:03]} 7.
Bg2 {[%clk 0:02:59.8]} 7... Bg7 {[%clk 0:03:03.6]} 8. Nf3 {[%clk 0:03:00.3]}
8... O-O {[%clk 0:03:04.2]} 9. O-O {[%clk 0:03:00.7]} 9... a6 {[%clk 0:03:04.5]}
10. a4 {[%clk 0:02:59.6]} 10... Nbd7 {[%clk 0:03:04.9]} 11. Bf4 {[%clk
0:02:56.1]} 11... Qc7 {[%clk 0:03:04.8]} 12. Nd2 {[%clk 0:02:42.7]} 12... Ng4
{[%clk 0:02:56.7]} 13. a5 {[%clk 0:02:32.4]} 13... Re8 {[%clk 0:02:53.5]} 14.
Nc4 {[%clk 0:02:29.8]} 14... Nge5 {[%clk 0:02:52.8]} 15. Bxe5 {[%clk 0:02:29.2]}
15... Nxe5 {[%clk 0:02:50.8]} 16. Nb6 {[%clk 0:02:29.4]} 16... Rb8 {[%clk
0:02:51.4]} 17. f4 {[%clk 0:02:25.3]} 17... Ng4 {[%clk 0:02:47.2]} 18. Qb3
{[%clk 0:01:20.8]} 18... Bd4+ {[%clk 0:02:35.7]} 19. Kh1 {[%clk 0:01:21]} 19...
Nf2+ {[%clk 0:02:32.7]} 20. Kg1 {[%clk 0:01:21.3]} 20... Ne4+ {[%clk 0:02:25.2]}
21. Kh1 {[%clk 0:01:17.5]} 21... Nd2 {[%clk 0:02:25.5]} 22. Qc2 {[%clk
0:01:10.9]} 22... Nxf1 {[%clk 0:02:25.8]} 23. Rxf1 {[%clk 0:01:11]} 23... c4
{[%clk 0:02:19.2]} 24. e4 {[%clk 0:01:05.7]} 24... Bxb6 {[%clk 0:02:18]} 25.
axb6 {[%clk 0:01:05.1]} 25... Qxb6 {[%clk 0:02:18.9]} 26. Qe2 {[%clk 0:00:56]}
26... Qc7 {[%clk 0:02:16.3]} 27. e5 {[%clk 0:00:52.1]} 27... dxe5 {[%clk
0:02:12.3]} 28. Ne4 {[%clk 0:00:51.8]} 28... Qd8 {[%clk 0:02:08.1]} 29. fxe5
{[%clk 0:00:46.6]} 29... Rxe5 {[%clk 0:02:08]} 30. Qxc4 {[%clk 0:00:41.7]} 30...
Bf5 {[%clk 0:02:07.7]} 31. Nc5 {[%clk 0:00:37]} 31... Qd6 {[%clk 0:02:02.8]} 32.
Qd4 {[%clk 0:00:33.3]} 32... Re2 {[%clk 0:01:54.9]} 33. b4 {[%clk 0:00:25.5]}
33... b6 {[%clk 0:01:48.3]} 34. Nxa6 {[%clk 0:00:25.4]} 34... Rd8 {[%clk
0:01:43.8]} 35. b5 {[%clk 0:00:22]} 35... Bd7 {[%clk 0:01:33.4]} 36. Qd3 {[%clk
0:00:19.3]} 36... Rb2 {[%clk 0:01:31.5]} 37. Rb1 {[%clk 0:00:18.7]} 37... Bf5
{[%clk 0:01:29.8]} 38. Be4 {[%clk 0:00:17.3]} 38... Bxe4+ {[%clk 0:01:24.9]} 39.
Qxe4 {[%clk 0:00:18.2]} 39... Qxd5 {[%clk 0:01:20.6]} 40. Re1 {[%clk 0:00:14]}
40... Rb1 {[%clk 0:01:13.2]} 0-1

[Event "*** Titled Tuesday Blitz"]
[Site "Chess.com"]
[Date "2020.12.29"]
[Round "4"]
[White "OK97"]
[Black "pastouche06"]
[Result "1-0"]
[WhiteElo "2799"]
[BlackElo "2524"]
[TimeControl "180+1"]
[EndTime "10:38:05 PST"]
[Termination "OK97 won by resignation"]

1. d4 {[%clk 0:03:00.9]} 1... Nf6 {[%clk 0:02:59.2]} 2. c4 {[%clk 0:03:01.4]}
2... e6 {[%clk 0:02:58.7]} 3. Nc3 {[%clk 0:03:01.4]} 3... Bb4 {[%clk 0:02:58.6]}
4. f3 {[%clk 0:03:01.5]} 4... O-O {[%clk 0:02:48.8]} 5. a3 {[%clk 0:02:59.7]}
5... Bxc3+ {[%clk 0:02:48.6]} 6. bxc3 {[%clk 0:03:00.6]} 6... Ne8 {[%clk
0:02:48.9]} 7. e4 {[%clk 0:02:59.9]} 7... b6 {[%clk 0:02:42.2]} 8. Bd3 {[%clk
0:02:58.7]} 8... Nc6 {[%clk 0:02:41.3]} 9. Nh3 {[%clk 0:02:46.3]} 9... Ba6
{[%clk 0:02:40.7]} 10. Bg5 {[%clk 0:02:41.8]} 10... f6 {[%clk 0:02:36.6]} 11.
Be3 {[%clk 0:02:42.2]} 11... Na5 {[%clk 0:02:35.5]} 12. Qe2 {[%clk 0:02:41.4]}
12... d6 {[%clk 0:02:03.4]} 13. Nf4 {[%clk 0:02:35.3]} 13... Qd7 {[%clk
0:01:46]} 14. d5 {[%clk 0:02:34.9]} 14... e5 {[%clk 0:01:36.7]} 15. Ne6 {[%clk
0:02:34.9]} 15... Rf7 {[%clk 0:01:37.1]} 16. a4 {[%clk 0:02:03.9]} 16... c5
{[%clk 0:01:31.7]} 17. f4 {[%clk 0:01:47.2]} 17... exf4 {[%clk 0:01:26.3]} 18.
Nxf4 {[%clk 0:01:26]} 18... Nc7 {[%clk 0:01:24.1]} 19. O-O {[%clk 0:01:26.2]}
19... Re8 {[%clk 0:01:22.8]} 20. Rf3 {[%clk 0:01:17.2]} 20... Re5 {[%clk
0:01:10.5]} 21. Rh3 {[%clk 0:01:12.5]} 21... Qe8 {[%clk 0:01:04.1]} 22. Nh5
{[%clk 0:00:57.1]} 22... Rxe4 {[%clk 0:00:44.6]} 23. Bxe4 {[%clk 0:00:57]} 23...
Qxe4 {[%clk 0:00:45.5]} 24. Rg3 {[%clk 0:00:51.8]} 24... Bxc4 {[%clk 0:00:43.2]}
25. Qf2 {[%clk 0:00:49.1]} 25... Nxd5 {[%clk 0:00:36.5]} 26. Bh6 {[%clk
0:00:45]} 26... g6 {[%clk 0:00:13.6]} 27. Re1 {[%clk 0:00:44.3]} 1-0

[Event "*** Titled Tuesday Blitz"]
[Site "Chess.com"]
[Date "2020.12.29"]
[Round "4"]
[White "davigator"]
[Black "ChessArchitect64"]
[Result "1-0"]
[WhiteElo "2276"]
[BlackElo "2079"]
[TimeControl "180+1"]
[EndTime "10:38:07 PST"]
[Termination "davigator won on time"]

1. e4 {[%clk 0:03:00.9]} 1... c5 {[%clk 0:02:56.4]} 2. Nf3 {[%clk 0:03:00.8]}
2... d6 {[%clk 0:02:56.1]} 3. d4 {[%clk 0:03:01.1]} 3... cxd4 {[%clk 0:02:55.2]}
4. Nxd4 {[%clk 0:03:01.6]} 4... Nf6 {[%clk 0:02:51.5]} 5. Nc3 {[%clk 0:03:01.6]}
5... Nc6 {[%clk 0:02:51.2]} 6. Bg5 {[%clk 0:03:00.9]} 6... e6 {[%clk 0:02:47.6]}
7. f3 {[%clk 0:03:00.1]} 7... Be7 {[%clk 0:02:47.2]} 8. h4 {[%clk 0:02:59.7]}
8... O-O {[%clk 0:02:46.9]} 9. Qd2 {[%clk 0:02:59]} 9... a6 {[%clk 0:02:42.4]}
10. O-O-O {[%clk 0:02:58.6]} 10... Qc7 {[%clk 0:02:40.9]} 11. Kb1 {[%clk
0:02:54.8]} 11... Nxd4 {[%clk 0:02:38.4]} 12. Qxd4 {[%clk 0:02:54.1]} 12... e5
{[%clk 0:02:37.2]} 13. Qd2 {[%clk 0:02:53.3]} 13... Be6 {[%clk 0:02:36]} 14. g4
{[%clk 0:02:52.9]} 14... h6 {[%clk 0:02:27.5]} 15. Bxf6 {[%clk 0:02:51.9]} 15...
Bxf6 {[%clk 0:02:22.6]} 16. Qxd6 {[%clk 0:02:52.3]} 16... Qxd6 {[%clk
0:02:20.8]} 17. Rxd6 {[%clk 0:02:52.1]} 17... Rfd8 {[%clk 0:02:21]} 18. Rxd8+
{[%clk 0:02:52]} 18... Rxd8 {[%clk 0:02:20.8]} 19. Bd3 {[%clk 0:02:52.8]} 19...
Be7 {[%clk 0:02:20.1]} 20. h5 {[%clk 0:02:48.9]} 20... f6 {[%clk 0:02:19.3]} 21.
Rd1 {[%clk 0:02:47.5]} 21... Kf7 {[%clk 0:02:16.8]} 22. Nd5 {[%clk 0:02:47.4]}
22... Bc5 {[%clk 0:02:00.5]} 23. c3 {[%clk 0:02:45]} 23... b5 {[%clk 0:01:58.5]}
24. b3 {[%clk 0:02:35.1]} 24... Kf8 {[%clk 0:01:56.5]} 25. Nc7 {[%clk 0:02:30]}
25... Bc8 {[%clk 0:01:40.8]} 26. Be2 {[%clk 0:02:28.7]} 26... Rxd1+ {[%clk
0:01:40]} 27. Bxd1 {[%clk 0:02:28.7]} 27... Bd6 {[%clk 0:01:35.6]} 28. Nd5
{[%clk 0:02:27.8]} 28... Kf7 {[%clk 0:01:26.6]} 29. Kc2 {[%clk 0:02:25.6]} 29...
g6 {[%clk 0:01:24.1]} 30. hxg6+ {[%clk 0:02:24.7]} 30... Kxg6 {[%clk 0:01:24.1]}
31. Be2 {[%clk 0:02:22.3]} 31... Kg5 {[%clk 0:01:22.8]} 32. b4 {[%clk
0:02:18.5]} 32... Bb7 {[%clk 0:01:22.2]} 33. a4 {[%clk 0:02:04.5]} 33... bxa4
{[%clk 0:00:50.5]} 34. Nb6 {[%clk 0:02:03.7]} 34... Kf4 {[%clk 0:00:39.1]} 35.
Nc4 {[%clk 0:01:52.6]} 35... Bc7 {[%clk 0:00:35.6]} 36. Kd2 {[%clk 0:01:46.1]}
36... Bc6 {[%clk 0:00:31.6]} 37. Na3 {[%clk 0:01:44.2]} 37... a5 {[%clk
0:00:23.3]} 38. b5 {[%clk 0:01:43.1]} 38... Bb7 {[%clk 0:00:21.5]} 39. Nc4
{[%clk 0:01:39.7]} 39... Bd8 {[%clk 0:00:09.9]} 40. Kc2 {[%clk 0:01:39.2]} 40...
Kg3 {[%clk 0:00:09.2]} 41. Kd2 {[%clk 0:01:35.3]} 41... Kf2 {[%clk 0:00:07.9]}
42. Bd1 {[%clk 0:01:34.9]} 42... Kg3 {[%clk 0:00:06.9]} 43. Ke3 {[%clk
0:01:34.3]} 43... Be7 {[%clk 0:00:05.6]} 44. Bxa4 {[%clk 0:01:32.3]} 44... Bc5+
{[%clk 0:00:05.7]} 45. Ke2 {[%clk 0:01:32.6]} 1-0

[Event "*** Titled Tuesday Blitz"]
[Site "Chess.com"]
[Date "2020.12.29"]
[Round "4"]
[White "Homino"]
[Black "szabadaba"]
[Result "0-1"]
[WhiteElo "2292"]
[BlackElo "2600"]
[TimeControl "180+1"]
[EndTime "10:38:08 PST"]
[Termination "szabadaba won by resignation"]

1. e4 {[%clk 0:03:00.9]} 1... c6 {[%clk 0:02:39.2]} 2. d4 {[%clk 0:03:00.2]}
2... d5 {[%clk 0:02:39]} 3. Nc3 {[%clk 0:03:00.5]} 3... dxe4 {[%clk 0:02:39]} 4.
Nxe4 {[%clk 0:03:01.4]} 4... Nd7 {[%clk 0:02:39.3]} 5. Nf3 {[%clk 0:03:00.8]}
5... Ngf6 {[%clk 0:02:39.2]} 6. Nxf6+ {[%clk 0:03:00.4]} 6... Nxf6 {[%clk
0:02:38.9]} 7. Bd3 {[%clk 0:03:00.9]} 7... Bg4 {[%clk 0:02:38.5]} 8. c3 {[%clk
0:02:56.8]} 8... e6 {[%clk 0:02:38.2]} 9. h3 {[%clk 0:02:53.3]} 9... Bh5 {[%clk
0:02:37.7]} 10. Bg5 {[%clk 0:02:49.2]} 10... Bd6 {[%clk 0:02:36.8]} 11. Qc2
{[%clk 0:02:40.5]} 11... Bxf3 {[%clk 0:02:35.5]} 12. gxf3 {[%clk 0:02:40.1]}
12... h6 {[%clk 0:02:33.7]} 13. Bh4 {[%clk 0:02:34.5]} 13... g5 {[%clk
0:02:20.7]} 14. Bg3 {[%clk 0:02:32]} 14... Nd5 {[%clk 0:02:19.7]} 15. O-O-O
{[%clk 0:02:22.5]} 15... Bxg3 {[%clk 0:02:18.9]} 16. fxg3 {[%clk 0:02:19.5]}
16... Ne3 {[%clk 0:02:18.9]} 17. Qe2 {[%clk 0:02:14.3]} 17... Nxd1 {[%clk
0:02:18.5]} 18. Rxd1 {[%clk 0:02:15.2]} 18... Qd6 {[%clk 0:02:18]} 19. Qf2
{[%clk 0:02:04.3]} 19... O-O-O {[%clk 0:02:16.7]} 20. f4 {[%clk 0:02:00.1]}
20... gxf4 {[%clk 0:02:13.2]} 21. gxf4 {[%clk 0:02:01]} 21... Rhg8 {[%clk
0:02:11.6]} 22. Kb1 {[%clk 0:01:53.6]} 22... Kb8 {[%clk 0:02:08.7]} 23. Bc2
{[%clk 0:01:45.5]} 23... f5 {[%clk 0:01:57.2]} 24. Qh4 {[%clk 0:01:40.3]} 24...
Rg6 {[%clk 0:01:53.4]} 25. Re1 {[%clk 0:01:26.1]} 25... Rdg8 {[%clk 0:01:51.9]}
26. b3 {[%clk 0:01:09]} 26... a5 {[%clk 0:01:46.2]} 27. Kb2 {[%clk 0:00:34.1]}
27... Ka7 {[%clk 0:01:35]} 28. a4 {[%clk 0:00:32]} 28... Rg2 {[%clk 0:01:26.4]}
29. Qxh6 {[%clk 0:00:27.6]} 29... R8g6 {[%clk 0:01:25.7]} 30. Qh5 {[%clk
0:00:18.5]} 30... Qxf4 {[%clk 0:01:20.8]} 31. Qd1 {[%clk 0:00:11.2]} 31... Rd2
{[%clk 0:01:18.1]} 32. Qc1 {[%clk 0:00:09.8]} 32... Rgg2 {[%clk 0:01:17.3]} 33.
Kb1 {[%clk 0:00:09.1]} 33... Qh2 {[%clk 0:01:06.1]} 34. Rh1 {[%clk 0:00:03.8]}
34... Rxc2 {[%clk 0:00:58.3]} 0-1

[Event "*** Titled Tuesday Blitz"]
[Site "Chess.com"]
[Date "2020.12.29"]
[Round "4"]
[White "ShimanovAlex"]
[Black "IMDT02"]
[Result "1-0"]
[WhiteElo "2841"]
[BlackElo "2537"]
[TimeControl "180+1"]
[EndTime "10:38:12 PST"]
[Termination "ShimanovAlex won on time"]

1. d4 {[%clk 0:03:00.9]} 1... Nf6 {[%clk 0:02:59.2]} 2. c4 {[%clk 0:02:59.1]}
2... e6 {[%clk 0:02:58.4]} 3. g3 {[%clk 0:02:58]} 3... d5 {[%clk 0:02:58.2]} 4.
Bg2 {[%clk 0:02:47.5]} 4... Be7 {[%clk 0:02:58]} 5. Nf3 {[%clk 0:02:45.5]} 5...
O-O {[%clk 0:02:58.2]} 6. Qc2 {[%clk 0:02:44.1]} 6... b6 {[%clk 0:02:49.8]} 7.
O-O {[%clk 0:02:41.4]} 7... Bb7 {[%clk 0:02:49.1]} 8. Rd1 {[%clk 0:02:39.2]}
8... Nbd7 {[%clk 0:02:46.7]} 9. cxd5 {[%clk 0:02:35.6]} 9... exd5 {[%clk
0:02:43.8]} 10. Bf4 {[%clk 0:02:34.9]} 10... c5 {[%clk 0:02:37.3]} 11. Nc3
{[%clk 0:02:33.4]} 11... a6 {[%clk 0:02:33.1]} 12. Ne5 {[%clk 0:02:30.7]} 12...
cxd4 {[%clk 0:02:25.6]} 13. Rxd4 {[%clk 0:02:29.8]} 13... Bc5 {[%clk 0:02:25.7]}
14. Rdd1 {[%clk 0:02:29.5]} 14... Nxe5 {[%clk 0:02:22.2]} 15. Bxe5 {[%clk
0:02:29.2]} 15... Bxf2+ {[%clk 0:02:22.4]} 16. Kh1 {[%clk 0:02:29.8]} 16... Ng4
{[%clk 0:02:08.5]} 17. Qf5 {[%clk 0:02:27]} 17... Bc8 {[%clk 0:01:52.6]} 18. Qf4
{[%clk 0:02:25.3]} 18... Be3 {[%clk 0:01:48]} 19. Bc7 {[%clk 0:02:02]} 19... Qd7
{[%clk 0:01:10.3]} 20. Rxd5 {[%clk 0:01:46.3]} 20... Bxf4 {[%clk 0:00:45.1]} 21.
Rxd7 {[%clk 0:01:45.3]} 21... Bxd7 {[%clk 0:00:46]} 22. gxf4 {[%clk 0:01:41.4]}
22... Rac8 {[%clk 0:00:36.6]} 23. Bxb6 {[%clk 0:01:41.2]} 23... Bc6 {[%clk
0:00:37.1]} 24. h3 {[%clk 0:01:36.1]} 24... Bxg2+ {[%clk 0:00:34.7]} 25. Kxg2
{[%clk 0:01:37]} 25... Nf6 {[%clk 0:00:34.2]} 26. Bd4 {[%clk 0:01:36.1]} 26...
Rc4 {[%clk 0:00:26.6]} 27. e3 {[%clk 0:01:35.8]} 27... Rd8 {[%clk 0:00:23.9]}
28. Kf3 {[%clk 0:01:34.4]} 28... Nd5 {[%clk 0:00:23.1]} 29. Rg1 {[%clk
0:01:16.7]} 29... g6 {[%clk 0:00:22]} 30. h4 {[%clk 0:01:14.3]} 30... h5 {[%clk
0:00:16]} 31. f5 {[%clk 0:01:12.8]} 31... Kh7 {[%clk 0:00:16.2]} 32. Ne4 {[%clk
0:01:10.5]} 32... Rc6 {[%clk 0:00:05.9]} 33. Rg5 {[%clk 0:01:00]} 33... Re8
{[%clk 0:00:05.4]} 34. fxg6+ {[%clk 0:00:59]} 34... Rxg6 {[%clk 0:00:02.8]} 35.
Rxh5+ {[%clk 0:00:58.6]} 1-0

[Event "*** Titled Tuesday Blitz"]
[Site "Chess.com"]
[Date "2020.12.29"]
[Round "4"]
[White "Aygehovit1992"]
[Black "PavelChernomordik"]
[Result "1-0"]
[WhiteElo "2599"]
[BlackElo "2292"]
[TimeControl "180+1"]
[EndTime "10:38:13 PST"]
[Termination "Aygehovit1992 won on time"]

1. e4 {[%clk 0:03:00.9]} 1... g6 {[%clk 0:03:00.9]} 2. d4 {[%clk 0:02:51.7]}
2... Bg7 {[%clk 0:03:01.8]} 3. Nc3 {[%clk 0:02:52.5]} 3... d6 {[%clk 0:03:01.3]}
4. f4 {[%clk 0:02:53.1]} 4... a6 {[%clk 0:03:01]} 5. Nf3 {[%clk 0:02:54]} 5...
b5 {[%clk 0:03:00.7]} 6. Bd3 {[%clk 0:02:54.7]} 6... Nd7 {[%clk 0:03:00.3]} 7.
a3 {[%clk 0:02:51.2]} 7... c5 {[%clk 0:02:58.4]} 8. Be3 {[%clk 0:02:39.7]} 8...
Bb7 {[%clk 0:02:44.5]} 9. O-O {[%clk 0:02:36.4]} 9... cxd4 {[%clk 0:02:41.2]}
10. Nxd4 {[%clk 0:02:31.5]} 10... Ngf6 {[%clk 0:02:38.1]} 11. Qf3 {[%clk
0:02:11.4]} 11... O-O {[%clk 0:02:35.1]} 12. Rae1 {[%clk 0:02:10.9]} 12... Rc8
{[%clk 0:02:26.5]} 13. Kh1 {[%clk 0:02:01.6]} 13... Nc5 {[%clk 0:02:17.9]} 14.
f5 {[%clk 0:02:01.2]} 14... e5 {[%clk 0:02:09.5]} 15. fxe6 {[%clk 0:02:01]}
15... fxe6 {[%clk 0:02:05.5]} 16. Qh3 {[%clk 0:02:00.2]} 16... Qe7 {[%clk
0:01:46.8]} 17. Bg5 {[%clk 0:01:56.8]} 17... e5 {[%clk 0:01:40.3]} 18. Nd5
{[%clk 0:01:44.7]} 18... Bxd5 {[%clk 0:01:36.2]} 19. exd5 {[%clk 0:01:44.8]}
19... Qd7 {[%clk 0:01:26.7]} 20. Ne6 {[%clk 0:01:40.4]} 20... Nxe6 {[%clk
0:01:25.9]} 21. dxe6 {[%clk 0:01:40.6]} 21... Qb7 {[%clk 0:01:19.9]} 22. Bxf6
{[%clk 0:01:35.6]} 22... Rxf6 {[%clk 0:01:18.6]} 23. Rxf6 {[%clk 0:01:32.6]}
23... Bxf6 {[%clk 0:01:17.8]} 24. Be4 {[%clk 0:01:31.2]} 24... d5 {[%clk
0:01:12]} 25. e7 {[%clk 0:01:26]} 25... dxe4 {[%clk 0:00:50.7]} 26. Qe6+ {[%clk
0:01:25]} 26... Kg7 {[%clk 0:00:50.3]} 27. e8=Q {[%clk 0:01:25.9]} 27... Rxe8
{[%clk 0:00:49.5]} 28. Qxe8 {[%clk 0:01:26.8]} 28... Qd5 {[%clk 0:00:46.7]} 29.
Qc8 {[%clk 0:01:26]} 29... Qd2 {[%clk 0:00:42.3]} 30. Qb7+ {[%clk 0:01:25.9]}
30... Kh6 {[%clk 0:00:34.5]} 31. Qxe4 {[%clk 0:01:26.8]} 31... a5 {[%clk
0:00:31.6]} 32. Qe3+ {[%clk 0:01:25.9]} 32... Qxe3 {[%clk 0:00:31]} 33. Rxe3
{[%clk 0:01:26.8]} 33... Kg5 {[%clk 0:00:20]} 34. Rb3 {[%clk 0:01:26]} 34... Kf5
{[%clk 0:00:18.9]} 35. Rxb5 {[%clk 0:01:25.7]} 35... a4 {[%clk 0:00:19.5]} 36.
b3 {[%clk 0:01:23.7]} 36... axb3 {[%clk 0:00:18.5]} 37. cxb3 {[%clk 0:01:24.6]}
37... Ke4 {[%clk 0:00:17.3]} 38. a4 {[%clk 0:01:24.7]} 38... Kd4 {[%clk
0:00:15.9]} 39. a5 {[%clk 0:01:24.5]} 39... e4 {[%clk 0:00:14.9]} 40. Kg1 {[%clk
0:01:24.3]} 40... e3 {[%clk 0:00:14.3]} 41. Kf1 {[%clk 0:01:24.5]} 41... Kd3
{[%clk 0:00:13.4]} 42. Rd5+ {[%clk 0:01:24.4]} 42... Ke4 {[%clk 0:00:10.8]} 43.
Rd7 {[%clk 0:01:23]} 1-0

[Event "*** Titled Tuesday Blitz"]
[Site "Chess.com"]
[Date "2020.12.29"]
[Round "4"]
[White "juli2512"]
[Black "Xeslu"]
[Result "0-1"]
[WhiteElo "2092"]
[BlackElo "2292"]
[TimeControl "180+1"]
[EndTime "10:38:13 PST"]
[Termination "Xeslu won by resignation"]

1. e4 {[%clk 0:03:00.9]} 1... c5 {[%clk 0:02:57.6]} 2. Nf3 {[%clk 0:03:00]} 2...
Nc6 {[%clk 0:02:57.5]} 3. d3 {[%clk 0:03:00.4]} 3... d6 {[%clk 0:02:55.1]} 4. g3
{[%clk 0:03:00.2]} 4... g6 {[%clk 0:02:54.9]} 5. Bg2 {[%clk 0:03:00.5]} 5... Bg7
{[%clk 0:02:55.8]} 6. O-O {[%clk 0:03:00.7]} 6... Nf6 {[%clk 0:02:56.4]} 7. Nbd2
{[%clk 0:02:59.9]} 7... O-O {[%clk 0:02:55.7]} 8. Re1 {[%clk 0:02:58.6]} 8...
Bg4 {[%clk 0:02:54.3]} 9. h3 {[%clk 0:02:58.2]} 9... Bxf3 {[%clk 0:02:54.3]} 10.
Nxf3 {[%clk 0:02:56.7]} 10... e5 {[%clk 0:02:50.4]} 11. c3 {[%clk 0:02:56.1]}
11... Qb6 {[%clk 0:02:48.4]} 12. Qc2 {[%clk 0:02:53.1]} 12... Rac8 {[%clk
0:02:45.3]} 13. Be3 {[%clk 0:02:51.9]} 13... Nd4 {[%clk 0:02:36.5]} 14. Qd2
{[%clk 0:02:43.7]} 14... Nxf3+ {[%clk 0:02:31.7]} 15. Bxf3 {[%clk 0:02:43.1]}
15... a5 {[%clk 0:02:27.5]} 16. Bg2 {[%clk 0:02:39.3]} 16... Nh5 {[%clk
0:02:18.4]} 17. Kh2 {[%clk 0:02:37.7]} 17... f5 {[%clk 0:02:16.3]} 18. exf5
{[%clk 0:02:30.9]} 18... gxf5 {[%clk 0:02:15.9]} 19. f4 {[%clk 0:02:27.7]} 19...
exf4 {[%clk 0:01:58]} 20. gxf4 {[%clk 0:02:27.4]} 20... Kh8 {[%clk 0:01:54.7]}
21. Bf3 {[%clk 0:02:19.9]} 21... Nf6 {[%clk 0:01:53.4]} 22. Rg1 {[%clk
0:02:14.7]} 22... Rg8 {[%clk 0:01:53.4]} 23. Rg2 {[%clk 0:02:10]} 23... d5
{[%clk 0:01:51.9]} 24. Qf2 {[%clk 0:02:00.6]} 24... d4 {[%clk 0:01:35.5]} 25.
cxd4 {[%clk 0:01:58]} 25... cxd4 {[%clk 0:01:33.9]} 26. Bxd4 {[%clk 0:01:58]}
26... Ng4+ {[%clk 0:01:33.9]} 27. hxg4 {[%clk 0:01:49]} 27... Bxd4 {[%clk
0:01:34.8]} 28. Qh4 {[%clk 0:01:43.9]} 28... fxg4 {[%clk 0:01:31.2]} 29. Bxg4
{[%clk 0:01:40]} 29... Rcf8 {[%clk 0:01:22.7]} 30. Rf1 {[%clk 0:01:31.7]} 30...
Qd6 {[%clk 0:01:18.9]} 31. Rg3 {[%clk 0:01:23.5]} 31... Rxf4 {[%clk 0:01:09.8]}
32. Kg2 {[%clk 0:00:17.5]} 32... Rxf1 {[%clk 0:01:04.9]} 33. Kxf1 {[%clk
0:00:17]} 33... Qf4+ {[%clk 0:01:01.9]} 34. Kg2 {[%clk 0:00:15.4]} 34... Bf2
{[%clk 0:00:57.7]} 35. Be6 {[%clk 0:00:08]} 35... Rxg3+ {[%clk 0:00:56]} 36.
Qxg3 {[%clk 0:00:07.4]} 36... Qxg3+ {[%clk 0:00:56]} 0-1